fUST/lending_fUST_20240520
["ID","MTS","AMOUNT","RATE_DAILY","PERIOD"]
[327549473,1716220240800,-2342.646368,0.000424,7]
[327549474,1716220240810,-151.0,0.000424,7]
[327549475,1716220240820,-2342.646368,0.000424,7]
[327549476,1716220240831,-1334.57301,0.000424,7]
[327549477,1716220240840,-1334.57301,0.000424,7]
[327549479,1716220240851,-151.0,0.000424,7]
[327549480,1716220240860,-1840.763516,0.000424,7]
[327549482,1716220240871,-1840.763516,0.000424,7]
[327549483,1716220240881,-864.181179,0.000424,7]
[327549484,1716220240893,-864.181179,0.000424,7]
[327549485,1716220240903,-151.0,0.000424,7]
[327549486,1716220240914,-527.250587,0.000424,7]
[327549487,1716220240924,-527.250587,0.000424,7]
[327549488,1716220240934,-1235.422589,0.000424,7]
[327549489,1716220240944,-1235.422589,0.000424,7]
[327549490,1716220240954,-151.0,0.000424,7]
[327549491,1716220240964,-207.083394,0.000424,7]
[327549492,1716220240974,-207.083394,0.000424,7]
[327549493,1716220240985,-208.759003,0.000424,7]
[327549494,1716220240995,-208.759003,0.000424,7]
[327549495,1716220241005,-440.790337,0.000424,7]
[327549496,1716220241015,-440.790337,0.000424,7]
[327549497,1716220241025,-151.0,0.000424,7]
[327549498,1716220241035,-165.026342,0.000424,7]
[327549499,1716220241046,-151.0,0.000424,7]
[327549500,1716220241056,-165.026342,0.000424,7]
[327549501,1716220241066,-151.0,0.000424,7]
[327549502,1716220241076,-144130.99633394,0.000425,30]
[327549503,1716220241087,-1950.84240585,0.000425,30]
[327549504,1716220241097,-281.0,0.000425,18]
[327549505,1716220241106,-563.0,0.000425,18]
[327549506,1716220241116,-563.0,0.000425,18]
[327549507,1716220241127,-171.77993772,0.000425,4]
[327549508,1716220241136,-1398.60691681,0.000425,120]
[327549509,1716220241163,-2203.00519036,0.000425,120]
[327549510,1716220241173,-1101.24786591,0.000425,30]
[327549511,1716220241183,-155.08767079,0.000425,4]
[327549512,1716220241192,-225.61642605,0.000425,4]
[327549513,1716220241201,-201.36944797,0.000425,4]
[327549514,1716220241211,-151.0,0.000425,7]
[327549515,1716220241220,-151.0,0.000425,7]
[327549516,1716220241230,-151.0,0.000425,7]
[327549517,1716220241239,-215.759591,0.000425,2]
[327549518,1716220241249,-215.759591,0.000425,2]
[327549519,1716220241261,-1104.481755,0.000425,7]
[327549520,1716220241271,-624.47327289,0.000425,7]
[327549521,1716220241284,-480.00848211,0.000425,7]
[327549522,1716220241294,-151.0,0.000425,7]
[327549523,1716220241303,-151.0,0.000425,7]
[327549524,1716220241313,-151.0,0.000425,7]
[327549525,1716220241323,-78.13203771,0.000425,7]
[327549526,1716220241585,-151.0,0.00039929,2]
[327549527,1716220241594,-151.0,0.000424,7]
[327549528,1716220241603,-72.86796229,0.000425,7]
[327549529,1716220241613,-231.625591,0.000425,7]
[327549530,1716220241622,-231.625591,0.000425,7]
[327549531,1716220241632,-151.0,0.000425,7]
[327549532,1716220241642,-151.0,0.000425,7]
[327549533,1716220241655,-151.0,0.000425,7]
[327549534,1716220241664,-151.0,0.000425,7]
[327549535,1716220241673,-82.4821525,0.000425,7]
[327549536,1716220241685,-192.6054455,0.000425,7]
[327549537,1716220241694,-275.087598,0.000425,7]
[327549538,1716220241703,-151.0,0.000425,7]
[327549539,1716220241712,-2342.646368,0.000425,7]
[327549540,1716220241722,-151.0,0.000425,7]
[327549541,1716220241731,-2342.646368,0.000425,7]
[327549542,1716220241740,-1334.57301,0.000425,7]
[327549543,1716220241750,-1334.57301,0.000425,7]
[327549544,1716220241760,-151.0,0.000425,7]
[327549545,1716220241769,-1840.763516,0.000425,7]
[327549546,1716220241779,-1840.763516,0.000425,7]
[327549547,1716220241788,-864.181179,0.000425,7]
[327549548,1716220241797,-864.181179,0.000425,7]
[327549549,1716220241807,-151.0,0.000425,7]
[327549550,1716220241816,-527.250587,0.000425,7]
[327549551,1716220241933,-527.250587,0.000425,7]
[327549552,1716220241943,-1235.422589,0.000425,7]
[327549553,1716220241952,-1235.422589,0.000425,7]
[327549554,1716220241961,-286.015299,0.000425,7]
[327549555,1716220241970,-207.083394,0.000425,7]
[327549556,1716220241980,-207.083394,0.000425,7]
[327549557,1716220241989,-208.759003,0.000425,7]
[327549558,1716220241998,-208.759003,0.000425,7]
[327549559,1716220242008,-440.790337,0.000425,7]
[327549560,1716220242017,-440.790337,0.000425,7]
[327549561,1716220242027,-151.0,0.000425,7]
[327549562,1716220242035,-600.0,0.000425,2]
[327549563,1716220242044,-165.026342,0.000425,7]
[327549564,1716220242053,-151.0,0.000425,7]
[327549565,1716220242062,-165.026342,0.000425,7]
[327549566,1716220242071,-151.0,0.000425,7]
[327549567,1716220242080,-151.0,0.000425,7]
[327549568,1716220242089,-155.80546353,0.00042727,30]
[327549569,1716220242099,-155.80546353,0.00042819,30]
[327549570,1716220242108,-582.3798952,0.00042877,2]
[327549571,1716220242117,-600.0,0.00042925,2]
[327549572,1716220242127,-1000.0,0.00043,10]
[327549573,1716220242137,-1000.0,0.00043,10]
[327549574,1716220242148,-1000.0,0.00043,10]
[327549575,1716220242157,-1000.0,0.00043,10]
[327549576,1716220242167,-457.18990443,0.00043,10]
[327549700,1716220246922,-542.81009557,0.00043,10]
[327549701,1716220246932,-1000.0,0.00043,10]
[327549702,1716220246942,-1000.0,0.00043,10]
[327549703,1716220246951,-1000.0,0.00043,10]
[327549704,1716220246960,-1000.0,0.00043,10]
[327549705,1716220246970,-1000.0,0.00043,10]
[327549706,1716220246979,-1000.0,0.00043,10]
[327549707,1716220246988,-1000.0,0.00043,10]
[327549708,1716220246998,-1000.0,0.00043,10]
[327549709,1716220247111,-1000.0,0.00043,10]
[327549710,1716220247120,-1000.0,0.00043,10]
[327549711,1716220247129,-1000.0,0.00043,10]
[327549712,1716220247138,-1000.0,0.00043,10]
[327549713,1716220247149,-503.0191235,0.00043,10]
[327549714,1716220247158,-10000.0,0.00043,30]
[327549715,1716220247167,-5000.0,0.00043,31]
[327549716,1716220247176,-1000.0,0.00043,43]
[327549717,1716220247186,-213.638904,0.00043,7]
[327549718,1716220247195,-215.759591,0.00043,2]
[327549719,1716220247204,-215.759591,0.00043,2]
[327549720,1716220247214,-1104.481755,0.00043,7]
[327549721,1716220247224,-1104.481755,0.00043,7]
[327549722,1716220247233,-191.433922,0.00043,7]
[327549723,1716220247243,-151.0,0.00043,7]
[327549724,1716220247253,-151.0,0.00043,7]
[327549725,1716220247262,-151.0,0.00043,7]
[327549726,1716220247272,-231.625591,0.00043,7]
[327549727,1716220247282,-231.625591,0.00043,7]
[327549728,1716220247291,-206.466269,0.00043,7]
[327549729,1716220247300,-151.0,0.00043,7]
[327549730,1716220247310,-151.0,0.00043,7]
[327549731,1716220247319,-275.087598,0.00043,7]
[327549732,1716220247329,-275.087598,0.00043,7]
[327549733,1716220247338,-151.0,0.00043,7]
[327549734,1716220247347,-2342.646368,0.00043,7]
[327549735,1716220247360,-2342.646368,0.00043,7]
[327549736,1716220247369,-1334.57301,0.00043,7]
[327549737,1716220247379,-1334.57301,0.00043,7]
[327549738,1716220247388,-151.0,0.00043,7]
[327549739,1716220247400,-1840.763516,0.00043,7]
[327549740,1716220247410,-1840.763516,0.00043,7]
[327549741,1716220247419,-864.181179,0.00043,7]
[327549742,1716220247428,-864.181179,0.00043,7]
[327549743,1716220247440,-151.0,0.00043,7]
[327549744,1716220247449,-527.250587,0.00043,7]
[327549745,1716220247459,-527.250587,0.00043,7]
[327549746,1716220247468,-1235.422589,0.00043,7]
[327549747,1716220247479,-1235.422589,0.00043,7]
[327549748,1716220247489,-207.083394,0.00043,7]
[327549749,1716220247498,-207.083394,0.00043,7]
[327549750,1716220247507,-208.759003,0.00043,7]
[327549751,1716220247516,-208.759003,0.00043,7]
[327549752,1716220247526,-440.790337,0.00043,7]
[327549753,1716220247536,-440.790337,0.00043,7]
[327549754,1716220247545,-151.0,0.00043,7]
[327549755,1716220247555,-165.026342,0.00043,7]
[327549756,1716220247564,-151.0,0.00043,7]
[327549757,1716220247573,-165.026342,0.00043,7]
[327549758,1716220247584,-151.0,0.00043,7]
[327549759,1716220247594,-151.0,0.00043,7]
[327549760,1716220247604,-1972.4,0.000433,120]
[327549761,1716220247613,-1022.94327185,0.0004335,2]
[327549762,1716220247623,-151.0,0.0004335,7]
[327549763,1716220247632,-151.0,0.0004335,7]
[327549764,1716220247642,-1573.86893304,0.000434,15]
[327549765,1716220247653,-151.0,0.000434,7]
[327549766,1716220247662,-151.0,0.000434,7]
[327549767,1716220247671,-231.625591,0.000434,7]
[327549768,1716220247680,-231.625591,0.000434,7]
[327549769,1716220247690,-151.0,0.000434,7]
[327549770,1716220247699,-151.0,0.000434,7]
[327549771,1716220247708,-275.087598,0.000434,7]
[327549772,1716220247718,-275.087598,0.000434,7]
[327549773,1716220247727,-151.0,0.000434,7]
[327549774,1716220247736,-2342.646368,0.000434,7]
[327549775,1716220247746,-2342.646368,0.000434,7]
[327549776,1716220247755,-1334.57301,0.000434,7]
[327549777,1716220247764,-1334.57301,0.000434,7]
[327549778,1716220247773,-151.0,0.000434,7]
[327549779,1716220247783,-1840.763516,0.000434,7]
[327549780,1716220247792,-1840.763516,0.000434,7]
[327549781,1716220247801,-864.181179,0.000434,7]
[327549782,1716220247810,-864.181179,0.000434,7]
[327549783,1716220247819,-151.0,0.000434,7]
[327549784,1716220247828,-527.250587,0.000434,7]
[327549785,1716220247837,-527.250587,0.000434,7]
[327549786,1716220247846,-1573.86893304,0.000434,15]
[327549787,1716220247856,-1235.422589,0.000434,7]
[327549788,1716220247865,-1235.422589,0.000434,7]
[327549789,1716220247875,-207.083394,0.000434,7]
[327549790,1716220247884,-207.083394,0.000434,7]
[327549791,1716220247894,-208.759003,0.000434,7]
[327549792,1716220247905,-208.759003,0.000434,7]
[327549793,1716220247914,-440.790337,0.000434,7]
[327549794,1716220247924,-440.790337,0.000434,7]
[327549795,1716220247933,-151.0,0.000434,7]
[327549796,1716220247943,-165.026342,0.000434,7]
[327549797,1716220247953,-151.0,0.000434,7]
[327549798,1716220247962,-165.026342,0.000434,7]
[327549799,1716220247972,-151.0,0.000434,7]
[327549800,1716220247982,-151.0,0.000434,7]
[327549801,1716220247992,-9275.905,0.000435,45]
[327549802,1716220248002,-1000.0,0.000435,2]
[327549803,1716220248011,-6388.0,0.00043789,120]
[327549804,1716220248022,-12681.09,0.00043795,3]
[327549805,1716220248031,-150.5,0.00043805,35]
[327549806,1716220248040,-189.0,0.00043805,35]
[327549807,1716220248049,-406.0,0.00043805,35]
[327549808,1716220248059,-999.0,0.00043805,15]
[327549809,1716220248068,-256.84,0.00043805,35]
[327549810,1716220248078,-237.0,0.00043805,35]
[327549811,1716220248087,-150.5,0.00043805,35]
[327549812,1716220248096,-300.0,0.00043805,35]
[327549813,1716220248106,-376.0,0.00043805,35]
[327549814,1716220248115,-215.759591,0.00043805,2]
[327549815,1716220248124,-215.759591,0.00043805,2]
[327549816,1716220248134,-1104.481755,0.00043805,7]
[327549817,1716220248143,-1104.481755,0.00043805,7]
[327549818,1716220248154,-151.0,0.00043805,7]
[327549819,1716220248163,-150.5,0.00043815,35]
[327549820,1716220248173,-189.0,0.00043815,35]
[327549821,1716220248182,-406.0,0.00043815,35]
[327549822,1716220248191,-999.0,0.00043815,15]
[327549823,1716220248200,-150.5,0.00043815,35]
[327549824,1716220248210,-279.1,0.00043815,35]
[327549825,1716220248219,-237.0,0.00043815,35]
[327549826,1716220248228,-150.5,0.00043815,35]
[327549827,1716220248238,-300.0,0.00043815,35]
[327549828,1716220248247,-376.0,0.00043815,35]
[327549829,1716220248256,-150.5,0.00043825,35]
[327549830,1716220248265,-189.0,0.00043825,35]
[327549831,1716220248274,-406.0,0.00043825,35]
[327549832,1716220248283,-999.0,0.00043825,15]
[327549833,1716220248293,-150.5,0.00043825,35]
[327549834,1716220248302,-150.5,0.00043825,35]
[327549835,1716220248311,-237.0,0.00043825,35]
[327549836,1716220248321,-150.5,0.00043825,35]
[327549837,1716220248330,-300.0,0.00043825,35]
[327549838,1716220248340,-376.0,0.00043825,35]
[327549839,1716220248349,-180.964424,0.00043825,7]
[327549840,1716220248361,-2342.646368,0.00043825,7]
[327549841,1716220248370,-2342.646368,0.00043825,7]
[327549842,1716220248379,-151.0,0.00043825,7]
[327549843,1716220248388,-1840.763516,0.00043825,7]
[327549844,1716220248399,-1840.763516,0.00043825,7]
[327549845,1716220248409,-864.181179,0.00043825,7]
[327549846,1716220248418,-864.181179,0.00043825,7]
[327549847,1716220248427,-151.0,0.00043825,7]
[327549848,1716220248519,-527.250587,0.00043825,7]
[327549849,1716220248529,-527.250587,0.00043825,7]
[327549850,1716220248539,-1235.422589,0.00043825,7]
[327549851,1716220248548,-1235.422589,0.00043825,7]
[327549852,1716220248557,-207.083394,0.00043825,7]
[327549853,1716220248567,-207.083394,0.00043825,7]
[327549854,1716220248576,-208.759003,0.00043825,7]
[327549855,1716220248585,-208.759003,0.00043825,7]
[327549856,1716220248595,-440.790337,0.00043825,7]
[327549857,1716220248604,-440.790337,0.00043825,7]
[327549858,1716220248614,-165.026342,0.00043825,7]
[327549859,1716220248623,-151.0,0.00043825,7]
[327549860,1716220248632,-165.026342,0.00043825,7]
[327549861,1716220248642,-212.929282,0.00043825,7]
[327549862,1716220248652,-151.0,0.00043825,7]
[327549863,1716220248662,-163.62820211,0.00043834,30]
[327549864,1716220248671,-500.0,0.00043835,40]
[327549865,1716220248681,-500.0,0.00043835,40]
[327549866,1716220248690,-500.0,0.00043835,40]
[327549867,1716220248699,-500.0,0.00043835,40]
[327549868,1716220248709,-503.67782548,0.00043835,40]
[327549869,1716220248718,-500.0,0.00043835,40]
[327549870,1716220248728,-500.0,0.00043835,40]
[327549871,1716220248738,-500.0,0.00043835,40]
[327549872,1716220248747,-500.0,0.00043835,40]
[327549873,1716220248756,-500.0,0.00043835,40]
[327549874,1716220248765,-151.0,0.00043835,7]
[327549875,1716220248775,-151.0,0.00043835,7]
[327549876,1716220248784,-151.0,0.00043835,7]
[327549877,1716220248793,-151.0,0.00043835,7]
[327549878,1716220248803,-151.0,0.00043835,7]
[327549879,1716220248812,-151.0,0.00043835,7]
[327549880,1716220248821,-151.0,0.00043835,7]
[327549881,1716220248830,-192.36021,0.00043835,7]
[327549882,1716220248839,-500.0,0.00043835,40]
[327549883,1716220248849,-500.0,0.00043835,40]
[327549884,1716220248858,-500.0,0.00043835,40]
[327549885,1716220248867,-500.0,0.00043835,40]
[327549886,1716220248878,-500.0,0.00043835,40]
[327549887,1716220248889,-500.0,0.00043835,40]
[327549888,1716220248899,-151.862909,0.00043835,7]
[327549889,1716220248908,-500.0,0.00043835,40]
[327549890,1716220248918,-503.90584989,0.00043835,40]
[327549891,1716220248927,-500.0,0.00043835,40]
[327549892,1716220248935,-500.0,0.00043835,40]
[327549893,1716220248944,-500.21504838,0.00043835,40]
[327549894,1716220248953,-501.32013921,0.00043835,40]
[327549895,1716220248963,-500.0,0.00043835,40]
[327549896,1716220248972,-500.0,0.00043835,40]
[327549897,1716220248981,-500.0,0.00043835,40]
[327549898,1716220248989,-743.73,0.00043835,40]
[327549899,1716220248998,-743.73,0.00043835,41]
[327549900,1716220249007,-743.73,0.00043835,42]
[327549901,1716220249016,-743.73,0.00043835,43]
[327549902,1716220249025,-743.73,0.00043835,44]
[327549903,1716220249033,-743.73,0.00043835,45]
[327549904,1716220249042,-743.73,0.00043835,46]
[327549905,1716220249051,-743.73,0.00043835,47]
[327549906,1716220249059,-519.71255828,0.00043835,40]
[327549907,1716220249068,-743.73,0.00043835,48]
[327549908,1716220249078,-743.73,0.00043835,49]
[327549909,1716220249087,-500.0,0.00043835,40]
[327549910,1716220249097,-743.73,0.00043835,50]
[327549911,1716220249106,-743.73,0.00043835,51]
[327549912,1716220249115,-743.73,0.00043835,52]
[327549913,1716220249124,-743.73,0.00043835,53]
[327549914,1716220249134,-500.0,0.00043835,40]
[327549915,1716220249143,-743.73,0.00043835,54]
[327549916,1716220249153,-743.73,0.00043835,55]
[327549917,1716220249162,-743.73,0.00043835,56]
[327549918,1716220249171,-743.73,0.00043835,57]
[327549919,1716220249181,-743.73,0.00043835,58]
[327549920,1716220249190,-743.73,0.00043835,59]
[327549921,1716220249199,-743.73,0.00043835,59]
[327549922,1716220249208,-743.73,0.00043835,59]
[327549923,1716220249217,-743.73,0.00043835,59]
[327549924,1716220249227,-743.7314563,0.00043835,59]
[327549925,1716220249236,-500.0,0.00043835,40]
[327549926,1716220249246,-500.0,0.00043835,40]
[327549927,1716220249255,-500.0,0.00043835,40]
[327549928,1716220249264,-188.27776799,0.00043835,40]
[327549929,1716220249273,-500.0,0.00043835,40]
[327549930,1716220249282,-500.0,0.00043835,40]
[327549931,1716220249292,-207.83980468,0.00043835,40]
[327549932,1716220249300,-500.0,0.00043835,40]
[327549933,1716220249310,-1000.0,0.00043835,40]
[327549934,1716220249319,-537.81503851,0.00043835,30]
[327549935,1716220249328,-500.0,0.00043835,40]
[327549936,1716220249337,-500.0,0.00043835,40]
[327549937,1716220249346,-500.0,0.00043835,40]
[327549938,1716220249358,-500.0,0.00043835,41]
[327549939,1716220249368,-500.79516664,0.00043835,40]
[327549940,1716220249377,-500.0,0.00043835,42]
[327549941,1716220249386,-500.0,0.00043835,43]
[327549942,1716220249396,-500.0,0.00043835,44]
[327549943,1716220249407,-500.0,0.00043835,45]
[327549944,1716220249416,-500.0,0.00043835,46]
[327549945,1716220249426,-500.0,0.00043835,40]
[327549946,1716220249436,-500.0,0.00043835,47]
[327549947,1716220249446,-500.0,0.00043835,48]
[327549948,1716220249456,-500.0,0.00043835,49]
[327549949,1716220249465,-500.0,0.00043835,50]
[327549950,1716220249474,-500.0,0.00043835,40]
[327549951,1716220249483,-500.0,0.00043835,51]
[327549952,1716220249492,-500.0,0.00043835,52]
[327549953,1716220249501,-500.0,0.00043835,53]
[327549954,1716220249510,-500.0,0.00043835,54]
[327549955,1716220249519,-504.21252514,0.00043835,55]
[327549956,1716220249528,-500.0,0.00043835,40]
[327549957,1716220249538,-900.37,0.00043835,40]
[327549958,1716220249547,-500.0,0.00043835,40]
[327549959,1716220249556,-500.0,0.00043835,40]
[327549960,1716220249564,-500.0,0.00043835,7]
[327549961,1716220249573,-500.0,0.00043835,40]
[327549962,1716220249583,-500.0,0.00043835,40]
[327549963,1716220249592,-500.0,0.00043835,40]
[327549964,1716220249601,-500.0,0.00043835,40]
[327549965,1716220249610,-500.0,0.00043835,40]
[327549966,1716220249619,-500.0,0.00043835,40]
[327549967,1716220249627,-500.0,0.00043835,40]
[327549968,1716220249636,-500.0,0.00043835,40]
[327549969,1716220249645,-500.0,0.00043835,40]
[327549970,1716220249654,-500.0,0.00043835,40]
[327549971,1716220249663,-500.0,0.00043835,30]
[327549972,1716220249673,-501.06889487,0.00043835,40]
[327549973,1716220249682,-500.0,0.00043835,40]
[327549974,1716220249691,-512.82527605,0.00043835,40]
[327549975,1716220249778,-500.0,0.00043835,40]
[327549976,1716220249788,-500.0,0.00043835,40]
[327549977,1716220249797,-506.66564336,0.00043835,40]
[327549978,1716220249806,-500.0,0.00043835,40]
[327549979,1716220249815,-508.25799455,0.00043835,40]
[327549980,1716220249824,-1000.0,0.00043835,40]
[327549981,1716220249834,-906.0,0.00043835,40]
[327549982,1716220249843,-452.79180075,0.00043835,40]
[327549983,1716220249855,-500.0,0.00043835,40]
[327549984,1716220249864,-500.0,0.00043835,40]
[327549985,1716220249873,-500.0,0.00043835,40]
[327549986,1716220249883,-500.0,0.00043835,40]
[327549987,1716220249892,-500.0,0.00043835,40]
[327549988,1716220249903,-503.94942733,0.00043835,40]
[327549989,1716220249912,-625.04,0.00043835,40]
[327549990,1716220249922,-500.0,0.00043835,40]
[327549991,1716220249932,-500.0,0.00043835,40]
[327549992,1716220249941,-500.0,0.00043835,40]
[327549993,1716220249951,-500.0,0.00043835,40]
[327549994,1716220249961,-500.0,0.00043835,40]
[327549995,1716220249971,-500.0,0.00043835,40]
[327549996,1716220249980,-397.60754624,0.00043835,40]
[327549997,1716220249990,-500.0,0.00043835,40]
[327549998,1716220250000,-500.0,0.00043835,40]
[327549999,1716220250009,-500.0,0.00043835,40]
[327550000,1716220250018,-151.0,0.00043835,40]
[327550001,1716220250028,-500.0,0.00043835,40]
[327550002,1716220250037,-500.0,0.00043835,40]
[327550003,1716220250047,-500.0,0.00043835,40]
[327550004,1716220250056,-500.0,0.00043835,40]
[327550005,1716220250066,-500.0,0.00043835,41]
[327550006,1716220250075,-500.0,0.00043835,42]
[327550007,1716220250084,-500.0,0.00043835,40]
[327550008,1716220250094,-500.0,0.00043835,43]
[327550009,1716220250103,-500.0,0.00043835,44]
[327550010,1716220250113,-500.0,0.00043835,45]
[327550011,1716220250122,-500.0,0.00043835,46]
[327550012,1716220250132,-500.0,0.00043835,47]
[327550013,1716220250141,-500.0,0.00043835,48]
[327550014,1716220250150,-500.0,0.00043835,49]
[327550015,1716220250162,-500.0,0.00043835,40]
[327550016,1716220250171,-500.0,0.00043835,50]
[327550017,1716220250180,-500.0,0.00043835,40]
[327550018,1716220250190,-500.0,0.00043835,40]
[327550019,1716220250199,-500.0,0.00043835,40]
[327550020,1716220250208,-500.0,0.00043835,51]
[327550021,1716220250218,-500.0,0.00043835,40]
[327550022,1716220250227,-500.0,0.00043835,52]
[327550023,1716220250236,-500.0,0.00043835,53]
[327550024,1716220250245,-354.68062276,0.00043835,54]
[327550025,1716220250255,-500.0,0.00043835,40]
[327550026,1716220250264,-500.0,0.00043835,40]
[327550027,1716220250273,-500.0,0.00043835,40]
[327550028,1716220250283,-500.0,0.00043835,40]
[327550029,1716220250292,-500.0,0.00043835,40]
[327550030,1716220250301,-500.0,0.00043835,40]
[327550031,1716220250310,-500.0,0.00043835,40]
[327550032,1716220250320,-500.0,0.00043835,40]
[327550033,1716220250329,-500.0,0.00043835,40]
[327550034,1716220250350,-500.0,0.00043835,40]
[327550035,1716220250371,-500.0,0.00043835,41]
[327550036,1716220250391,-500.0,0.00043835,42]
[327550037,1716220250411,-500.0,0.00043835,43]
[327550038,1716220250434,-500.0,0.00043835,44]
[327550039,1716220250451,-500.0,0.00043835,45]
[327550040,1716220250471,-500.0,0.00043835,46]
[327550041,1716220250485,-500.0,0.00043835,47]
[327550042,1716220250503,-500.0,0.00043835,48]
[327550043,1716220250522,-503.81819159,0.00043835,49]
[327550044,1716220250541,-500.0,0.00043835,40]
[327550045,1716220250553,-500.0,0.00043835,40]
[327550046,1716220250571,-500.0,0.00043835,40]
[327550047,1716220250586,-500.0,0.00043835,40]
[327550048,1716220250601,-500.0,0.00043835,40]
[327550049,1716220250615,-500.0,0.00043835,40]
[327550050,1716220250628,-500.0,0.00043835,40]
[327550051,1716220250643,-500.0,0.00043835,40]
[327550052,1716220250659,-500.0,0.00043835,40]
[327550053,1716220250674,-500.0,0.00043835,40]
[327550054,1716220250690,-500.0,0.00043835,40]
[327550055,1716220250704,-500.0,0.00043835,40]
[327550056,1716220250719,-500.0,0.00043835,40]
[327550057,1716220250733,-500.0,0.00043835,40]
[327550058,1716220250747,-229.86113328,0.00043835,40]
[327550059,1716220250762,-209.43106945,0.00043835,40]
[327550060,1716220250776,-500.0,0.00043835,40]
[327550061,1716220250790,-292.60916471,0.00043835,40]
[327550062,1716220250805,-500.0,0.00043835,40]
[327550063,1716220250820,-500.0,0.00043835,40]
[327550064,1716220250834,-500.0,0.00043835,40]
[327550065,1716220250848,-500.0,0.00043835,40]
[327550066,1716220250862,-500.0,0.00043835,40]
[327550067,1716220250876,-500.0,0.00043835,40]
[327550068,1716220250891,-553.92242521,0.00043835,40]
[327550069,1716220250906,-500.0,0.00043835,40]
[327550070,1716220250922,-306.35580295,0.00043835,40]
[327550071,1716220250937,-500.0,0.00043835,40]
[327550072,1716220250952,-500.0,0.00043835,40]
[327550073,1716220250967,-500.0,0.00043835,40]
[327550074,1716220250981,-500.0,0.00043835,40]
[327550075,1716220250995,-500.0,0.00043835,40]
[327550076,1716220251009,-500.0,0.00043835,40]
[327550077,1716220251024,-505.63235126,0.00043835,40]
[327550078,1716220251040,-215.759591,0.00043835,2]
[327550079,1716220251055,-215.759591,0.00043835,2]
[327550080,1716220251069,-215.759591,0.00043835,2]
[327550081,1716220251084,-525.12846481,0.00043835,40]
[327550082,1716220251099,-500.0,0.00043835,40]
[327550083,1716220251114,-215.759591,0.00043835,2]
[327550084,1716220251129,-215.759591,0.00043835,2]
[327550085,1716220251139,-215.759591,0.00043835,2]
[327550086,1716220251148,-215.759591,0.00043835,2]
[327550087,1716220251160,-500.0,0.00043835,40]
[327550088,1716220251170,-215.759591,0.00043835,2]
[327550089,1716220251179,-215.759591,0.00043835,2]
[327550090,1716220251189,-215.759591,0.00043835,2]
[327550091,1716220251198,-215.759591,0.00043835,2]
[327550092,1716220251208,-215.759598,0.00043835,2]
[327550093,1716220251397,-500.0,0.00043835,40]
[327550094,1716220251418,-500.0,0.00043835,40]
[327550095,1716220251428,-500.0,0.00043835,40]
[327550096,1716220251440,-500.0,0.00043835,40]
[327550097,1716220251449,-500.0,0.00043835,40]